bitfinex-derivatives/quotes_ETHF0:USTF0_20260307
["timestamp","ask_amount","ask_price","bid_price","bid_amount"]
[1772869393171,3.26668224,1978.2,1977.4,0.59941581]
[1772869393379,1.31360624,1978.2,1977.4,0.59941581]
[1772869393578,0.94388673,1978.2,1977.4,0.59941581]
[1772869395172,0.94388673,1978.2,1977.6,0.59941581]
[1772869395377,0.94388673,1978.2,1977.6,0.6044757]
[1772869396373,0.00605678,1978.2,1977.6,0.6044757]
[1772869398276,4.24562551,1978.9,1977.7,1.953076]
[1772869398581,0.37158295,1979.0,1978.3,0.59941581]
[1772869399375,0.37530201,1979.0,1978.3,0.59941581]
[1772869400082,0.37445107,1978.6,1978.1,0.59941581]
[1772869400282,6.62971906,1979.0,1978.1,0.59941581]
[1772869400283,0.37445107,1978.8,1978.1,0.59941581]
[1772869402384,0.39298487,1979.0,1978.3,0.59941581]
[1772869402589,0.39298487,1979.0,1978.5,0.59941581]
[1772869404191,0.00371906,1979.0,1978.5,0.59941581]
[1772869405990,0.38714275,1979.0,1978.5,0.59941581]
[1772869407391,0.38026451,1978.6,1977.9,0.59941581]
[1772869412593,1.953076,1978.7,1977.9,0.59941581]
[1772869412792,0.37847421,1978.7,1977.9,0.59941581]
[1772869413398,0.37664384,1978.6,1977.9,0.59941581]
[1772869413594,0.00371906,1979.0,1977.9,0.59941581]
[1772869413797,1.953076,1978.7,1977.9,0.59941581]
[1772869414097,2.32971984,1978.7,1977.9,0.59941581]
[1772869414498,0.37664384,1978.7,1977.9,0.59941581]
[1772869422006,4.60964695,1978.9,1977.9,0.59941581]
[1772869422206,6.58758617,1978.8,1977.9,0.59941581]
[1772869422401,0.36402144,1978.8,1977.9,0.59941581]
[1772869422604,0.36402144,1978.8,1978.0,40.8]
[1772869422809,0.36402144,1978.8,1978.1,0.55467895]
[1772869428310,6.23557236,1978.7,1978.1,0.55467895]
[1772869428610,0.36402144,1978.8,1978.1,0.55467895]
[1772869429910,6.58368456,1978.7,1978.1,0.55467895]
[1772869430102,0.34803154,1978.7,1978.1,0.55467895]
[1772869433614,4.59933472,1979.0,1978.1,0.55467895]
[1772869433814,7.09160407,1978.9,1978.1,0.55467895]
[1772869434015,6.23620053,1978.8,1978.1,0.55467895]
[1772869434314,0.34999015,1978.9,1978.1,0.55467895]
[1772869434515,6.58691258,1978.8,1978.1,0.55467895]
[1772869434715,0.34999015,1978.8,1978.1,0.55467895]
[1772869435314,6.58715608,1978.7,1978.1,0.55467895]
[1772869435514,4.24934457,1979.0,1978.1,0.53427875]
[1772869435515,0.34923795,1978.6,1978.1,0.53427875]
[1772869436615,0.34923795,1978.6,1977.9,0.55467895]
[1772869437313,0.37089906,1978.7,1977.9,0.55467895]
[1772869437517,6.61315246,1978.6,1977.9,0.55467895]
[1772869437714,0.37089906,1978.6,1977.9,0.55467895]
[1772869445324,6.24363635,1978.5,1977.9,0.55467895]
[1772869445527,0.36589848,1978.5,1977.9,0.55467895]
[1772869455826,0.36669296,1978.3,1977.7,0.57747491]
[1772869462343,0.59687885,1978.5,1977.7,0.57747491]
[1772869463745,10.87062551,1978.8,1977.7,0.57747491]
[1772869464045,0.59687885,1978.6,1977.7,0.57747491]
[1772869464344,6.27537557,1978.5,1977.7,0.57747491]
[1772869464647,0.59687885,1978.6,1977.7,0.57747491]
[1772869464841,6.27614827,1978.5,1977.7,0.57747491]
[1772869465046,0.59687885,1978.6,1977.7,0.57747491]
[1772869465245,6.27614827,1978.5,1977.7,0.57747491]
[1772869465544,0.59687885,1978.6,1977.7,0.57747491]
[1772869465749,6.27691938,1978.5,1977.7,0.57747491]
[1772869465943,0.59687885,1978.6,1977.7,0.57747491]
[1772869466143,6.27693352,1978.5,1977.7,0.57747491]
[1772869466346,0.59687885,1978.6,1977.7,0.57747491]
[1772869466548,6.87437197,1978.5,1977.7,0.57747491]
[1772869466746,0.59687885,1978.6,1977.7,0.57747491]
[1772869466948,6.27708293,1978.5,1977.7,0.57747491]
[1772869467246,0.59687885,1978.6,1977.7,0.57747491]
[1772869467446,6.87428689,1978.5,1977.7,0.57747491]
[1772869467644,0.59687885,1978.5,1977.7,0.57747491]
[1772869469651,4.24562551,1978.7,1977.7,0.57747491]
[1772869469652,0.59687885,1978.3,1977.7,0.57747491]
[1772869488368,0.59616038,1978.5,1977.8,0.56096029]
[1772869488566,6.30066242,1978.4,1977.8,0.56096029]
[1772869488766,0.59616038,1978.5,1977.8,0.56096029]
[1772869489062,6.8968228,1978.4,1977.8,0.56096029]
[1772869489368,0.59616038,1978.4,1977.8,0.56096029]
[1772869490267,0.59616038,1978.5,1977.8,0.56096029]
[1772869497264,7.26195971,1978.4,1977.8,0.56096029]
[1772869497466,0.59616038,1978.4,1977.8,0.56096029]
[1772869499672,0.55696903,1978.7,1977.8,0.56096029]
[1772869499863,0.55696903,1978.5,1977.8,0.56096029]
[1772869517177,0.55696903,1978.5,1977.9,0.59838241]
[1772869519573,0.55696903,1978.5,1977.7,0.59838241]
[1772869520386,0.56675967,1978.3,1977.7,0.59838241]
[1772869523591,2.51876022,1978.4,1977.7,0.59838241]
[1772869523783,0.56675967,1978.4,1977.7,0.59838241]
[1772869523991,0.56675967,1978.6,1977.9,0.59838241]
[1772869524193,6.35256833,1978.5,1977.9,0.59838241]
[1772869524389,0.56675967,1978.5,1977.9,0.59838241]
[1772869525094,0.56675967,1978.7,1978.1,0.59838241]
[1772869525294,1.48541539,1979.0,1978.5,0.59838241]
[1772869525495,0.31211347,1979.0,1978.5,0.59838241]
[1772869525995,0.87887314,1979.0,1978.5,0.59838241]
[1772869526195,0.56675967,1978.9,1978.5,0.59838241]
[1772869526396,0.00440328,1978.9,1978.5,0.59838241]
[1772869527696,0.57116295,1978.9,1978.5,0.59838241]
[1772869527996,0.00440328,1978.9,1978.5,0.59838241]
[1772869528197,0.57116295,1978.9,1978.5,0.59838241]
[1772869528396,0.00440328,1978.9,1978.5,0.59838241]
[1772869530498,0.57116295,1978.9,1978.3,0.59838241]
[1772869530702,0.56675967,1978.7,1978.3,0.59838241]
[1772869531099,0.56675967,1978.7,1978.2,0.59838241]
[1772869539110,0.56675967,1978.7,1978.1,17.99923282]
[1772869539302,0.56675967,1978.7,1978.1,0.57023282]
[1772869539499,0.56675967,1978.7,1977.8,0.57023282]
[1772869541411,6.32601433,1978.6,1977.8,0.57023282]
[1772869541711,0.54313453,1978.5,1977.8,0.57023282]
[1772869542811,0.54313453,1978.6,1977.8,0.57023282]
[1772869543205,10.87235489,1978.9,1977.8,0.57023282]
[1772869543409,0.54313453,1978.8,1977.8,0.57023282]
[1772869548915,0.54753781,1978.9,1977.8,0.57023282]
[1772869549613,0.54753781,1978.9,1977.9,17.519]
[1772869549815,0.54753781,1978.9,1978.0,0.57023282]
[1772869550416,0.00440328,1978.9,1978.0,0.57023282]
[1772869557225,0.54753781,1978.9,1978.0,0.57023282]
[1772869558530,0.00440328,1978.9,1978.0,0.57023282]
[1772869561530,0.5573403,1979.2,1978.3,0.57746486]
[1772869562429,0.5616954,1979.2,1978.3,0.57746486]
[1772869569637,0.5616954,1979.2,1978.4,40.8]
[1772869569931,0.5616954,1979.2,1978.5,0.54649815]
[1772869571634,0.5616954,1979.2,1978.6,0.54649815]
[1772869574741,0.0043551,1979.2,1978.6,0.54649815]
[1772869575129,0.55041808,1979.2,1978.7,40.8]
[1772869575335,0.55041808,1979.2,1978.8,0.54649815]
[1772869579137,0.54606298,1979.6,1978.8,0.54649815]
[1772869579343,0.54606298,1979.4,1978.8,0.54649815]
[1772869580242,0.55189393,1979.4,1978.8,0.54649815]
[1772869583247,0.00583095,1979.4,1978.8,0.54649815]
[1772869583439,0.00583095,1979.4,1979.0,0.54649815]
[1772869583641,0.54606298,1979.5,1979.0,0.55211531]
[1772869584553,0.55058737,1979.5,1979.0,0.55211531]
[1772869585149,0.54606298,1979.6,1979.0,0.55211531]
[1772869586046,0.54991436,1979.6,1979.0,0.55211531]
[1772869586242,0.54991436,1979.6,1979.0,0.00561716]
[1772869588651,2.5011448,1979.6,1979.0,0.00561716]
[1772869589155,0.54606298,1979.5,1979.0,0.00561716]
[1772869594658,0.54606298,1979.5,1979.0,0.55669864]
[1772869596458,0.59784839,1979.3,1979.0,0.55669864]
[1772869597267,0.59784839,1979.3,1978.9,0.55108148]
[1772869598461,0.59784839,1979.3,1978.9,0.55654556]
[1772869600765,0.59784839,1979.3,1978.9,0.00546408]
[1772869601761,0.59784839,1979.3,1978.7,0.55108148]
[1772869602765,0.59784839,1979.3,1978.7,0.55491035]
[1772869606275,1.94995698,1979.4,1978.6,58.496]
[1772869606276,0.59784839,1979.1,1978.6,41.35108148]
[1772869606476,0.59784839,1979.1,1978.3,0.55108148]
[1772869606977,0.59784839,1979.1,1978.5,0.55108148]
[1772869607273,0.59784839,1979.1,1978.5,0.55673895]
[1772869611674,0.59784839,1978.9,1978.5,0.00565747]
[1772869612179,0.59784839,1978.9,1978.5,0.55673895]
[1772869613882,0.59784839,1979.1,1978.5,0.55673895]
[1772869622976,0.59784839,1979.1,1978.5,0.00565747]
[1772869623181,0.59784839,1979.1,1978.5,0.55189903]
[1772869624787,0.54394996,1979.0,1978.5,0.55189903]
[1772869627485,0.54394996,1979.4,1978.9,0.54624156]
[1772869629789,0.54394996,1979.3,1978.7,0.54624156]
[1772869629985,0.54394996,1979.1,1978.6,0.54624156]
[1772869630181,0.54394996,1978.8,1978.5,0.00565747]
[1772869631391,0.54394996,1978.8,1978.5,0.55189903]
[1772869633994,0.54394996,1978.9,1978.5,0.55189903]
[1772869635497,0.54394996,1979.1,1978.5,0.55189903]
[1772869640798,0.54394996,1979.0,1978.5,0.55189903]
[1772869641996,0.54394996,1978.9,1978.5,0.55189903]
[1772869643997,0.54394996,1978.8,1978.2,41.34624156]
[1772869644204,0.54394996,1978.8,1978.3,0.54624156]
[1772869645099,0.54394996,1978.8,1978.3,0.55269281]
[1772869645702,0.54394996,1978.8,1978.3,41.35269281]
[1772869645904,0.54394996,1978.8,1978.4,0.54624156]
[1772869648505,0.54394996,1978.8,1978.3,41.35269281]
[1772869648697,0.54394996,1978.6,1978.1,0.54624156]
[1772869648902,0.54394996,1978.6,1977.9,0.54624156]
[1772869649102,0.54394996,1978.4,1978.0,41.34624156]
[1772869649702,0.54394996,1978.4,1978.0,41.35214227]
[1772869650100,0.54394996,1978.4,1978.1,0.54624156]
[1772869653706,0.5818922,1978.7,1978.1,0.54624156]
[1772869653911,0.5818922,1978.8,1978.1,0.54624156]
[1772869654111,0.5818922,1978.8,1978.3,0.56987194]
[1772869654308,0.5818922,1978.9,1978.3,0.56987194]
[1772869664422,0.5818922,1978.9,1978.1,0.56987194]
[1772869664718,7.2048922,1978.8,1978.1,0.56987194]
[1772869664919,0.5818922,1978.7,1978.1,0.56987194]
[1772869673035,0.5818922,1978.6,1978.1,0.56987194]
[1772869681543,0.5818922,1978.6,1978.0,0.59003545]
[1772869682946,0.5818922,1978.6,1978.0,0.00590071]
[1772869683146,0.5818922,1978.6,1978.0,0.59894564]
[1772869689549,0.58752779,1978.5,1978.0,0.59894564]
[1772869691354,0.58752779,1978.5,1978.0,0.02749532]
[1772869692251,0.58752779,1978.5,1978.0,0.03116835]
[1772869693054,0.58752779,1978.5,1978.0,0.00367303]
[1772869693257,0.58752779,1978.5,1978.0,0.00188447]
[1772869695555,0.58752779,1978.3,1977.8,40.8]
[1772869695859,0.58752779,1978.3,1977.7,0.59304493]
[1772869696158,0.58752779,1978.5,1977.8,0.59304493]
[1772869696463,7.21152779,1978.5,1977.8,0.59304493]
[1772869696659,7.21152779,1978.7,1977.8,0.5975763]
[1772869696862,7.21152779,1978.7,1978.0,0.59304493]
[1772869697258,0.58752779,1978.7,1978.0,0.59304493]
[1772869704769,0.58752779,1978.9,1978.0,0.59304493]
[1772869718482,0.58752779,1978.9,1978.3,0.55490236]
[1772869722290,0.58752779,1978.9,1978.0,1.95060571]
[1772869722490,0.58752779,1978.9,1978.1,0.55490236]
[1772869753815,4.82088299,1979.2,1978.1,0.55490236]
[1772869754013,0.57693138,1979.0,1978.5,0.57554014]
[1772869759319,0.57693138,1979.0,1978.4,0.57554014]
[1772869759519,0.57693138,1979.0,1978.0,12.56109447]
[1772869759520,0.57693138,1979.0,1978.1,0.57554014]
[1772869761017,1.95060571,1978.9,1978.1,0.57554014]
[1772869761323,0.57693138,1978.8,1978.1,0.57554014]
[1772869820158,0.57693138,1978.8,1978.2,41.36639616]
[1772869820454,0.58846797,1979.2,1978.3,0.56639616]
[1772869820654,0.58846797,1979.0,1978.3,0.56639616]
[1772869820861,0.58846797,1979.0,1978.4,0.56639616]
[1772869833166,0.58846797,1979.0,1978.5,0.54184694]
[1772869842482,0.58846797,1979.0,1978.6,0.54184694]
[1772869854089,0.58846797,1979.0,1978.4,20.30484694]
[1772869854589,0.58846797,1979.0,1978.5,0.54184694]
[1772869862397,0.5807534,1979.4,1978.6,0.54037085]
[1772869862702,0.5807534,1979.2,1978.6,0.54037085]
[1772869865304,0.5807534,1979.2,1978.5,0.54037085]
[1772869880910,0.91178651,1979.6,1978.9,0.54037085]
[1772869880911,0.5807534,1979.5,1978.9,0.54037085]
[1772869881315,0.5807534,1979.5,1979.1,0.54037085]
[1772869881516,0.58460478,1979.6,1979.1,0.54037085]
[1772869882311,0.00385138,1979.6,1979.1,0.54037085]
[1772869882517,0.5807534,1979.8,1979.1,0.54037085]
[1772869883517,0.58476169,1979.8,1979.1,0.54037085]
[1772869888213,0.5807534,1979.6,1978.9,0.54037085]
[1772869894918,0.56383227,1979.8,1979.1,0.59647718]
[1772869895822,0.56383227,1979.8,1979.3,0.59647718]
[1772869896022,0.56383227,1979.8,1979.3,0.60051137]
[1772869898318,0.03882942,1979.8,1979.3,0.60051137]
[1772869898522,0.55982398,1979.9,1979.3,0.60051137]
[1772869898725,0.55982398,1979.9,1979.4,0.59647718]
[1772869899320,0.55982398,1980.0,1979.4,0.59647718]
[1772869899520,0.00599901,1979.9,1979.4,0.59647718]
[1772869899721,0.56582299,1979.9,1979.4,0.59647718]
[1772869900825,0.00599901,1979.9,1979.4,0.59647718]
[1772869901320,0.00599901,1979.9,1979.6,0.59647718]
[1772869906327,0.7855619,1980.3,1979.8,0.59647718]
[1772869906536,0.55982398,1980.2,1979.8,0.59647718]
[1772869906832,0.55982398,1980.2,1979.8,41.39647718]
[1772869907034,0.55982398,1980.2,1979.9,0.59647718]
[1772869907235,0.56494223,1980.2,1979.8,41.39647718]
[1772869908840,0.00511825,1980.2,1979.9,0.59647718]
[1772869909029,0.22573792,1980.3,1979.9,0.59647718]
[1772869909328,0.55982398,1980.5,1979.9,0.59647718]
[1772869909928,0.55982398,1981.0,1979.9,0.59647718]
[1772869910230,0.55982398,1980.8,1979.9,0.59647718]
[1772869911137,0.56548201,1980.8,1979.9,0.59647718]
[1772869913740,0.55982398,1980.7,1979.9,0.59647718]
[1772869920335,0.55982398,1980.7,1979.8,41.35180616]
[1772869921138,0.57106372,1980.4,1979.8,40.8]
[1772869924338,0.57106372,1980.4,1979.7,20.94780616]
[1772869924842,0.57106372,1980.4,1979.7,61.74780616]
[1772869927140,0.57106372,1980.4,1979.7,20.94780616]
[1772869927747,0.56407471,1980.0,1979.2,0.35376353]
[1772869928140,0.56407471,1980.0,1979.4,0.55424638]
[1772869928543,0.56407471,1980.0,1979.0,0.55424638]
[1772869928843,0.56407471,1979.7,1979.0,0.5589781]
[1772869929645,0.56407471,1979.7,1979.1,0.55424638]
[1772869932343,0.56407471,1979.7,1979.0,40.80473172]
[1772869932548,0.56407471,1979.2,1978.6,0.55424638]
[1772869933046,0.56407471,1979.5,1978.8,0.55424638]
[1772869933442,0.56407471,1979.5,1978.8,0.55838664]
[1772869933644,0.56942018,1979.5,1978.8,0.55838664]
[1772869933840,0.56407471,1980.1,1979.0,0.55424638]
[1772869934849,0.56904224,1980.1,1979.0,0.55424638]
[1772869938648,0.56904224,1980.1,1979.2,0.55424638]
[1772869938849,0.56904224,1980.1,1979.4,0.55424638]
[1772869943962,0.56904224,1980.1,1979.6,0.54533192]
[1772869949457,0.56904224,1980.1,1979.7,40.8]
[1772869949662,0.56904224,1980.1,1979.7,41.3159562]
[1772869950565,0.56904224,1980.1,1979.7,40.8]
[1772869950966,0.56904224,1980.1,1979.7,41.30555535]
[1772869951666,0.56407471,1980.7,1979.8,0.50555535]
[1772869951858,0.56407471,1980.5,1979.8,0.50555535]
[1772869952669,0.56893821,1980.5,1979.8,0.50555535]
[1772869958168,0.56893821,1980.5,1979.7,62.27668492]
[1772869958573,0.56893821,1980.5,1979.8,0.65668492]
[1772869966574,0.56893821,1980.5,1979.9,0.65668492]
[1772869979388,0.63817432,1980.7,1980.1,0.62786881]
[1772869979789,0.63817432,1980.7,1979.8,1.94722315]
[1772869979989,0.63817432,1980.7,1979.9,0.62786881]
[1772869980589,0.64216132,1980.7,1979.9,0.62786881]
[1772869981080,1.94722315,1980.6,1979.9,0.62786881]
[1772869981286,0.63817432,1980.5,1979.8,0.62786881]
[1772869982192,0.63817432,1980.5,1979.9,0.63518385]
[1772869984488,0.60412463,1980.6,1980.1,0.63518385]
[1772869988797,0.60412463,1980.6,1979.9,0.63518385]
[1772869993102,0.60412463,1980.6,1980.1,0.63518385]
[1772869993301,0.60811163,1980.7,1980.1,0.63518385]
[1772869996196,0.60811163,1980.7,1979.9,0.63518385]
[1772870006610,0.60811163,1980.7,1980.1,0.63518385]
[1772870015123,0.59016882,1981.0,1980.3,0.56974496]
[1772870015323,2.53739197,1981.0,1980.3,0.56974496]
[1772870015520,0.59016882,1980.9,1980.3,0.56974496]
[1772870016221,0.59610997,1980.9,1980.3,0.57569177]
[1772870023130,0.59610997,1980.9,1980.3,0.00594681]
[1772870024932,0.59610997,1980.9,1980.3,0.57569177]
[1772870032532,0.32670016,1981.6,1980.8,0.56974496]
[1772870032735,0.32670016,1981.6,1980.9,21.93774496]
[1772870033035,0.32670016,1981.6,1981.0,40.8]
[1772870033436,0.33126453,1981.6,1981.0,40.8]
[1772870033628,0.33126453,1981.6,1980.8,21.315]
[1772870033828,0.59016882,1981.4,1980.7,21.315]
[1772870034235,0.59016882,1981.4,1980.5,21.89074496]
[1772870034431,0.59016882,1981.4,1980.6,0.56974496]
[1772870034637,0.59016882,1981.4,1980.7,40.8]
[1772870034937,0.59016882,1981.4,1980.6,0.56974496]
[1772870035339,0.59016882,1981.4,1980.6,41.36974496]
[1772870035639,0.59016882,1981.4,1980.6,0.56974496]
[1772870041246,0.59016882,1981.4,1980.5,62.67986142]
[1772870041445,0.59016882,1981.4,1980.5,41.35886142]
[1772870041743,0.59016882,1981.4,1980.5,0.55886142]
[1772870043644,0.56802776,1981.2,1980.5,0.55886142]
[1772870047944,0.56802776,1981.2,1980.4,21.97249701]
[1772870048647,0.56802776,1981.2,1980.4,0.59849701]
[1772870063355,0.56802776,1981.0,1980.4,0.59849701]
[1772870065853,0.56802776,1980.9,1980.3,21.42294681]
[1772870066055,0.56802776,1980.7,1980.0,40.8]
[1772870066249,0.56802776,1980.7,1980.0,41.39849701]
[1772870066556,0.56802776,1980.7,1980.1,0.59849701]
[1772870067150,0.56802776,1980.7,1980.1,0.60313211]
[1772870070457,0.56802776,1980.8,1980.1,0.60313211]
[1772870070758,0.56802776,1980.9,1980.1,0.60313211]
[1772870084163,1.07004755,1981.2,1980.3,1.11071674]
[1772870084663,1.07004755,1981.0,1980.3,1.11071674]
[1772870092365,1.07004755,1981.0,1980.5,1.11071674]
[1772870095571,1.07004755,1980.6,1980.1,1.11535184]
[1772870096271,1.94641177,1981.1,1980.1,1.11535184]
[1772870096471,1.07004755,1980.9,1980.1,1.11535184]
[1772870103778,1.07004755,1980.9,1980.3,0.98494431]
[1772870108280,0.97696301,1981.2,1980.5,0.98494431]
[1772870109678,0.97696301,1981.2,1980.7,0.98494431]
[1772870113180,0.97696301,1981.2,1980.6,1.94641177]
[1772870113181,0.97696301,1981.5,1980.9,0.98494431]
[1772870115581,0.97696301,1981.5,1981.1,0.98494431]
[1772870116784,0.97696301,1981.5,1981.2,0.98494431]
[1772870117184,0.98152738,1981.6,1981.2,0.98494431]
[1772870117684,0.00456437,1981.6,1981.2,0.98494431]
[1772870119980,0.97696301,1981.9,1981.3,0.98494431]
[1772870121090,0.98055416,1981.9,1981.3,0.98494431]
[1772870121284,0.00359115,1981.9,1981.3,0.98494431]
[1772870121781,0.00359115,1981.9,1980.9,20.122]
[1772870121782,0.00359115,1981.9,1981.5,0.98494431]
[1772870121980,0.00359115,1981.9,1981.5,0.99101887]
[1772870122179,0.00359115,1981.9,1981.5,41.79101887]
[1772870122384,0.98055416,1981.9,1981.5,0.99101887]
[1772870122984,0.00359115,1981.9,1981.7,0.98494431]
[1772870124288,0.97696301,1982.1,1981.7,0.98494431]
[1772870124887,0.97696301,1982.2,1981.7,0.98494431]
[1772870125285,0.98187297,1982.2,1981.5,40.80607456]
[1772870125490,0.97696301,1982.1,1981.5,41.79101887]
[1772870125891,0.97696301,1982.1,1981.6,0.98494431]
[1772870128192,0.97696301,1981.9,1981.5,0.99101887]
[1772870128388,0.97696301,1981.7,1981.1,0.98494431]
[1772870129296,0.97696301,1981.7,1981.1,0.98923806]
[1772870130497,0.97696301,1981.7,1981.1,41.78923806]
[1772870130895,0.97696301,1981.7,1981.2,0.98494431]
[1772870132999,1.95132173,1982.2,1981.2,0.98494431]
[1772870133196,0.86859554,1982.1,1981.2,0.98494431]
[1772870134901,0.86859554,1982.1,1981.4,0.92973549]
[1772870136699,0.86859554,1982.1,1981.5,0.92973549]
[1772870137706,0.86859554,1982.0,1981.4,41.72973549]
[1772870138305,0.86859554,1982.0,1981.4,0.92973549]
[1772870140608,0.86859554,1982.0,1981.2,41.72973549]
[1772870140806,0.86859554,1981.8,1981.2,41.72973549]
[1772870141107,0.86859554,1981.8,1981.3,0.92973549]
[1772870141609,0.86859554,1981.8,1981.1,0.00429375]
[1772870141804,0.86859554,1981.8,1981.2,0.92973549]
[1772870147210,0.86859554,1981.6,1981.1,0.93402924]
[1772870148005,0.86859554,1981.6,1981.1,0.00429375]
[1772870148206,4.2177948,1982.1,1980.7,21.726]
[1772870148207,0.86859554,1981.4,1980.7,22.65573549]
[1772870148606,0.86859554,1981.4,1980.8,0.92973549]
[1772870149113,0.86859554,1981.4,1980.8,0.93587734]
[1772870150606,0.86859554,1981.4,1980.8,0.00614185]
[1772870152113,0.86859554,1981.4,1980.6,0.92973549]
[1772870152307,0.86859554,1981.4,1980.5,40.8]
[1772870152308,0.86859554,1981.4,1980.5,41.72973549]
[1772870152513,0.86859554,1981.4,1980.5,0.92973549]
[1772870152902,0.86859554,1981.4,1980.5,0.93430001]
[1772870155714,0.86859554,1981.7,1980.9,0.92973549]
[1772870164418,0.86859554,1981.7,1980.7,0.86619498]
[1772870164715,0.83484605,1981.5,1980.5,0.8707595]
[1772870169920,0.83484605,1981.3,1980.5,0.8707595]
[1772870173622,0.83484605,1981.3,1980.7,0.86619498]
[1772870187334,0.83484605,1981.7,1980.7,0.86619498]
[1772870187733,0.83484605,1981.7,1980.9,0.86619498]
[1772870190233,0.83484605,1981.7,1980.6,0.86619498]
[1772870190628,0.83484605,1981.7,1980.7,0.86619498]
[1772870196133,0.83484605,1981.7,1980.9,0.78400053]
[1772870196437,0.83484605,1981.7,1981.0,0.78400053]
[1772870201642,0.83484605,1981.7,1980.9,23.63897678]
[1772870201643,0.83484605,1981.7,1981.2,0.78400053]
[1772870201835,0.79818306,1982.0,1981.2,0.78400053]
[1772870202040,0.7672161,1981.9,1981.2,0.78400053]
[1772870204838,1.56539916,1982.0,1981.2,0.78400053]
[1772870205141,0.7672161,1981.9,1981.2,0.78400053]
[1772870207146,0.7672161,1981.9,1981.4,0.78400053]
[1772870212448,0.7672161,1981.9,1981.5,0.78400053]
[1772870213041,1.56539916,1982.0,1981.5,0.78400053]
[1772870213247,1.56539916,1982.0,1981.7,0.78400053]
[1772870213447,0.7672161,1981.9,1981.6,0.78400053]
[1772870215943,0.7672161,1981.9,1981.3,62.851]
[1772870216251,0.7672161,1981.9,1981.5,0.78400053]
[1772870216549,0.7672161,1981.9,1981.4,0.78400053]
[1772870220450,0.7672161,1981.9,1981.3,40.8]
[1772870220656,0.7672161,1981.9,1981.3,0.67116284]
[1772870221856,0.7672161,1981.9,1981.2,22.195]
[1772870222057,0.7672161,1981.9,1981.2,22.86610369]
[1772870222753,0.7672161,1981.9,1981.2,0.67110369]
[1772870223750,0.67876975,1982.1,1981.5,2.61528596]
[1772870224048,0.67876975,1982.1,1981.6,0.67110369]
[1772870226953,0.67876975,1982.1,1981.7,0.67110369]
[1772870227150,0.68367971,1982.2,1981.7,0.67110369]
[1772870228661,0.00490996,1982.2,1981.7,0.67110369]
[1772870229361,0.00490996,1982.2,1981.9,0.67110369]
[1772870229557,0.00490996,1982.2,1981.9,0.67552639]
[1772870231560,0.67876975,1982.6,1981.9,0.67552639]
[1772870231758,6.91223889,1982.5,1982.1,0.67110369]
[1772870232056,0.67876975,1982.5,1982.1,0.67110369]
[1772870232655,0.68527859,1982.5,1982.1,0.67110369]
[1772870233260,0.00650884,1982.5,1982.1,0.67110369]
[1772870233561,0.68527859,1982.5,1982.1,0.67110369]
[1772870233955,0.00650884,1982.5,1982.1,0.67110369]
[1772870235156,1.69889197,1982.9,1982.5,0.67110369]
[1772870235363,0.67876975,1982.7,1982.1,2.18100923]
[1772870235660,0.67876975,1982.7,1982.2,41.03682696]
[1772870235861,0.67876975,1982.7,1982.3,0.23228126]
[1772870236160,0.67876975,1982.5,1982.2,41.03208867]
[1772870236357,1.69889197,1982.6,1982.2,0.23208867]
[1772870236558,2.37766172,1982.6,1982.2,0.23208867]
[1772870236759,0.67876975,1983.2,1982.4,0.23208867]
[1772870236961,0.67876975,1983.0,1982.4,0.23208867]
[1772870237657,0.67876975,1983.0,1982.6,0.67110369]
[1772870237857,0.68408952,1983.0,1982.6,0.67110369]
[1772870238560,0.67876975,1983.4,1983.0,0.67110369]
[1772870238759,2.62295202,1983.6,1983.0,0.67110369]
[1772870238953,0.67876975,1983.4,1982.8,0.67110369]
[1772870239561,0.68525999,1983.4,1982.8,0.67110369]
[1772870241161,0.68525999,1983.4,1983.0,0.67110369]
[1772870241367,0.00649024,1983.4,1983.0,0.67110369]
[1772870241959,0.67876975,1983.7,1983.4,0.67110369]
[1772870242157,6.37376595,1984.1,1983.4,0.67110369]
[1772870242360,0.67876975,1983.9,1983.4,0.67110369]
[1772870242969,0.68231681,1983.9,1983.4,0.67676581]
[1772870250272,0.68231681,1983.9,1983.4,0.00566212]
[1772870250473,0.67876975,1983.6,1983.1,0.67110369]
[1772870251074,0.67876975,1983.6,1982.9,0.67110369]
[1772870251575,0.67876975,1983.6,1982.9,0.67687237]
[1772870253571,0.67876975,1983.6,1982.9,0.00576868]
[1772870253772,7.28676975,1983.6,1982.9,0.00576868]
[1772870254075,0.83350218,1983.5,1982.9,0.84750761]
[1772870254472,0.83350218,1983.5,1982.9,0.00576868]
[1772870254674,2.77768445,1983.5,1982.9,0.00576868]
[1772870254875,0.83350218,1983.4,1982.9,0.00576868]
[1772870255375,0.83350218,1983.4,1982.9,0.84750761]
[1772870255777,0.83350218,1983.4,1982.9,0.00576868]
[1772870256677,0.83350218,1983.4,1982.9,0.84750761]
[1772870256875,0.83350218,1983.4,1982.9,0.00576868]
[1772870257378,0.83350218,1983.4,1982.8,0.84173893]
[1772870258281,0.83350218,1983.4,1982.8,0.84610541]
[1772870258779,0.83350218,1983.4,1982.8,0.00436648]
[1772870260279,0.83350218,1983.4,1982.8,0.84610541]
[1772870262181,7.44150218,1983.3,1982.8,0.84610541]
[1772870262381,0.83350218,1983.2,1982.8,0.84610541]
[1772870270902,0.83350218,1983.4,1982.8,0.84610541]
[1772870271198,7.44150218,1983.4,1982.8,0.84610541]
[1772870271594,0.83350218,1983.3,1982.8,0.84610541]
[1772870275396,0.83350218,1983.8,1982.8,0.84610541]
[1772870275701,0.83350218,1983.8,1983.0,0.84173893]
[1772870278092,0.83350218,1983.6,1983.0,0.84173893]
[1772870278995,0.77847058,1983.5,1983.0,0.84173893]
[1772870281598,0.77847058,1983.5,1982.8,0.79392025]
[1772870285908,0.81684663,1983.3,1982.8,0.79392025]
[1772870288311,0.81684663,1983.3,1982.5,0.77006687]
[1772870289312,0.81684663,1983.3,1982.5,0.77393854]
[1772870297619,0.81684663,1983.5,1982.5,0.77393854]
[1772870297820,0.81684663,1983.4,1982.5,0.77393854]
[1772870303528,0.79512199,1983.8,1982.8,0.77006687]
[1772870303829,0.79512199,1983.6,1982.8,0.77006687]
[1772870308526,0.77566144,1983.8,1982.8,0.77006687]
[1772870326836,0.00354706,1983.9,1983.1,0.71680353]
[1772870327042,0.68520055,1983.9,1983.1,0.71680353]
[1772870327440,0.68520055,1983.9,1983.2,41.51680353]
[1772870327742,0.68520055,1983.9,1983.3,0.71680353]
[1772870328745,0.00354706,1983.9,1983.3,0.71680353]
[1772870332454,0.66562581,1983.9,1983.3,0.71680353]
[1772870339762,0.66562581,1983.9,1982.9,0.65984446]
[1772870341266,0.66562581,1983.9,1983.1,0.65984446]
[1772870341563,0.00354706,1983.9,1983.3,0.65984446]
[1772870341764,0.62997265,1983.9,1983.5,0.65984446]
[1772870342665,0.62997265,1983.9,1983.2,0.63986483]
[1772870343864,0.00354706,1983.9,1983.4,0.63986483]
[1772870346070,0.58780617,1984.1,1983.4,0.63986483]
[1772870346267,0.58838179,1984.3,1983.4,0.63986483]
[1772870346969,0.58838179,1984.3,1982.9,19.409]
[1772870346970,0.59398839,1984.3,1983.6,0.63986483]
[1772870354562,0.54803076,1984.3,1983.6,0.63986483]
[1772870356368,0.54803076,1984.3,1982.8,40.8]